[Event "50th La Roda Open 2024"]
[Site "La Roda"]
[Date "2024.03.28"]
[Round "3.11"]
[White "Cruz Lledo, Pablo"]
[Black "Bustos Bernardo, Samuel"]
[Result "0-1"]
[ECO "D35"]
[WhiteElo "2353"]
[BlackElo "2188"]
[Annotator "RC"]
[PlyCount "108"]
[EventDate "2024.03.27"]
[EventType "swiss"]
[EventCountry "ESP"]
[SourceTitle "playchess.com"]
[Source "ChessBase"]
[SourceQuality "1"]
[TimeControl "5400+30"]

1. d4 {[%emt 0:07:02]} Nf6 {[%emt 0:00:25]} 2. c4 {[%emt 0:00:03]} e6 {[%emt 0:00:06]} 3. Nf3 {[%emt 0:00:06]} d5 {[%emt 0:00:07]} 4. cxd5 {[%emt 0:00:05]} exd5 {[%emt 0:00:10]} 5. Nc3 {[%emt 0:00:04]} c6 {[%emt 0:02:18]} 6. Bg5 {[%emt 0:00:48]} Be7 {[%emt 0:01:30]} 7. e3 {[%emt 0:00:27]} Bf5 {[%emt 0:01:10]} 8. Bd3 {[%emt 0:00:45]} Bxd3 {[%emt 0:00:31]} 9. Qxd3 {[%emt 0:00:07]} Nbd7 {[%emt 0:00:47]} 10. O-O {[%emt 0:00:46]} h6 {[%emt 0:00:33]} 11. Bh4 {[%emt 0:02:09]} O-O {[%emt 0:00:21]} 12. Nd2 {[%emt 0:01:30]} Nh5 {[%emt 0:07:11]} 13. Bxe7 {[%emt 0:01:49]} Qxe7 {[%emt 0:00:06]} 14. b4 {[%emt 0:00:57]} b5 {[%emt 0:05:22]} 15. a4 {[%emt 0:06:53]} a6 {[%emt 0:00:31]} 16. Rfb1 {[%emt 0:03:57]} Nb6 {[%emt 0:00:25]} 17. a5 {[%emt 0:06:01]} Nc4 {[%emt 0:00:09]} 18. Nb3 {[%emt 0:00:27]} f5 {[%emt 0:07:31]} 19. Nc5 {[%emt 0:05:15]} f4 {[%emt 0:13:36]} 20. Re1 {[%emt 0:06:12]} f3 {[%emt 0:05:35]} 21. Qg6 {[%emt 0:06:29]} Qh4 {[%emt 0:01:51]} 22. g3 {[%emt 0:11:19]} Qh3 {[%emt 0:09:21]} 23. Qe6+ {[%emt 0:01:43]} Qxe6 {[%emt 0:00:05]} 24. Nxe6 {[%emt 0:00:05]} Rf6 {[%emt 0:04:43]} 25. Nc5 {[%emt 0:00:24]} Rd6 {[%emt 0:00:56]} 26. Na2 {[%emt 0:03:44]} Nf6 {[%emt 0:01:18]} 27. Nc1 {[%emt 0:00:07]} g5 {[%emt 0:02:09]} 28. N1d3 {[%emt 0:03:34]} Kg7 {[%emt 0:03:38]} 29. Ne5 {[%emt 0:02:18]} g4 {[%emt 0:00:49]} 30. Rac1 {[%emt 0:02:26]} h5 {[%emt 0:01:47]} 31. h3 {[%emt 0:05:02]} Ra7 {[%emt 0:01:56]} 32. Rc2 {[%emt 0:04:07]} Kh6 {[%emt 0:01:06]} 33. Kh2 {[%emt 0:00:14]} Kg5 {[%emt 0:01:17]} 34. Rh1 {[%emt 0:10:22]} Kf5 {[%emt 0:02:43]} 35. hxg4+ {[%emt 0:00:38]} hxg4 {[%emt 0:02:14]} 36. Nxc4 {[%emt 0:00:07]} bxc4 {[%emt 0:00:26]} 37. Kg1 {[%emt 0:00:07]} Rd8 {[%emt 0:03:15]} 38. Rb2 {[%emt 0:04:47]} Re8 {[%emt 0:02:20]} 39. Kf1 {[%emt 0:01:12]} Ree7 {[%emt 0:02:14]} 40. Ke1 {[%emt 0:05:17]} Rh7 {[%emt 0:01:42]} 41. Rf1 {[%emt 0:00:16]} Ne4 {[%emt 0:00:34]} 42. Nxe4 {[%emt 0:00:54]} Kxe4 {[%emt 0:00:09]} 43. Kd2 {[%emt 0:00:02]} Rh2 {[%emt 0:00:35]} 44. Kc3 {[%emt 0:00:23]} Rah7 {[%emt 0:00:39]} 45. Kd2 {[%emt 0:01:16]} R7h3 {[%emt 0:00:21]} 46. Kc3 {[%emt 0:00:35]} Rxg3 {[%emt 0:03:39]} 47. fxg3 {[%emt 0:00:03]} Rxb2 {[%emt 0:00:07]} 48. Kxb2 {[%emt 0:00:03]} Kxe3 {[%emt 0:00:08]} 49. Re1+ {[%emt 0:00:10]} Kd2 {[%emt 0:00:39]} 50. Re6 {[%emt 0:00:14]} c3+ {[%emt 0:01:25]} 51. Kb3 {[%emt 0:00:05]} c2 {[%emt 0:00:14]} 52. Rxc6 {[%emt 0:00:27]} c1=Q {[%emt 0:00:09]} 53. Rxc1 {[%emt 0:00:08]} Kxc1 {[%emt 0:00:05]} 54. b5 {[%emt 0:00:07]} f2 {[%emt 0:00:07]} 0-1

[Event "50th La Roda Open 2024"]
[Site "La Roda"]
[Date "2024.03.28"]
[Round "3.12"]
[White "Horcajuelo Rocamora, Martin"]
[Black "Martinez Reyes, Pedro Ramon"]
[Result "0-1"]
[ECO "D52"]
[WhiteElo "2183"]
[BlackElo "2332"]
[Annotator "RC"]
[PlyCount "98"]
[EventDate "2024.03.27"]
[EventType "swiss"]
[EventCountry "ESP"]
[SourceTitle "playchess.com"]
[Source "ChessBase"]
[SourceQuality "1"]
[TimeControl "5400+30"]

1. d4 {[%emt 0:00:03]} d5 {[%emt 0:01:29]} 2. c4 {[%emt 0:00:11]} c6 {[%emt 0:00:15]} 3. Nc3 {[%emt 0:03:29]} Nf6 {[%emt 0:00:20]} 4. Nf3 {[%emt 0:03:56]} e6 {[%emt 0:00:09]} 5. Bg5 {[%emt 0:00:15]} Nbd7 {[%emt 0:00:07]} 6. e3 {[%emt 0:00:22]} Qa5 {[%emt 0:00:10]} 7. Nd2 {[%emt 0:01:17]} Bb4 {[%emt 0:02:12]} 8. Qc2 {[%emt 0:00:28]} h6 {[%emt 0:07:55]} 9. Bh4 {[%emt 0:01:56]} c5 {[%emt 0:05:01]} 10. dxc5 {[%emt 0:12:19]} O-O {[%emt 0:16:33]} 11. a3 {[%emt 0:06:32]} Bxc3 {[%emt 0:05:37]} 12. Qxc3 {[%emt 0:00:54]} Qxc3 {[%emt 0:00:50]} 13. bxc3 {[%emt 0:00:08]} Nxc5 {[%emt 0:01:39]} 14. cxd5 {[%emt 0:13:15]} Nxd5 {[%emt 0:04:44]} 15. e4 {[%emt 0:03:02]} g5 {[%emt 0:01:14]} 16. Bg3 {[%emt 0:15:12]} Nf4 {[%emt 0:00:47]} 17. Bxf4 {[%emt 0:01:26]} gxf4 {[%emt 0:00:06]} 18. f3 {[%emt 0:00:27]} Rd8 {[%emt 0:03:16]} 19. Bc4 {[%emt 0:03:18]} Bd7 {[%emt 0:02:43]} 20. Rb1 {[%emt 0:04:26]} Rac8 {[%emt 0:04:16]} 21. Ke2 {[%emt 0:02:53]} Na4 {[%emt 0:04:57]} 22. Rxb7 {[%emt 0:06:02]} Nxc3+ {[%emt 0:03:41]} 23. Ke1 {[%emt 0:01:38]} Ba4 {[%emt 0:03:42]} 24. Rg1 {[%emt 0:03:10]} Bb5 {[%emt 0:11:44]} 25. Bb3 {[%emt 0:06:14]} a6 {[%emt 0:02:04]} 26. a4 {[%emt 0:04:00]} Nxa4 {[%emt 0:00:52]} 27. Bxa4 {[%emt 0:00:43]} Bxa4 {[%emt 0:00:08]} 28. Rb2 {[%emt 0:00:05]} Bb5 {[%emt 0:04:37]} 29. g3 {[%emt 0:00:30]} fxg3 {[%emt 0:03:03]} 30. hxg3 {[%emt 0:03:19]} Rd3 {[%emt 0:01:25]} 31. Kf2 {[%emt 0:01:00]} Rcc3 {[%emt 0:01:06]} 32. g4 {[%emt 0:01:53]} Kg7 {[%emt 0:01:43]} 33. Rg3 {[%emt 0:00:59]} e5 {[%emt 0:00:36]} 34. Rh3 {[%emt 0:01:02]} Rc1 {[%emt 0:00:46]} 35. Kg2 {[%emt 0:00:56]} Rd1 {[%emt 0:01:51]} 36. Nf1 {[%emt 0:00:28]} Rxf1 {[%emt 0:02:03]} 37. Rxb5 {[%emt 0:00:04]} Rfxf3 {[%emt 0:02:50]} 38. Rxf3 {[%emt 0:00:21]} Rd2+ {[%emt 0:00:06]} 39. Kg3 {[%emt 0:00:22]} axb5 {[%emt 0:00:04]} 40. Rb3 {[%emt 0:00:45]} Rd4 {[%emt 0:00:07]} 41. Rxb5 {[%emt 0:00:10]} Rxe4 {[%emt 0:00:04]} 42. Rb6 {[%emt 0:00:08]} f6 {[%emt 0:00:58]} 43. Rb7+ {[%emt 0:00:26]} Kg6 {[%emt 0:00:05]} 44. Rb8 {[%emt 0:00:01]} h5 {[%emt 0:01:28]} 45. gxh5+ {[%emt 0:00:21]} Kxh5 {[%emt 0:00:04]} 46. Rg8 {[%emt 0:00:03]} Ra4 {[%emt 0:00:24]} 47. Kf3 {[%emt 0:00:15]} f5 {[%emt 0:00:12]} 48. Ke3 {[%emt 0:00:10]} Ra3+ {[%emt 0:00:07]} 49. Kf2 {[%emt 0:00:02]} e4 {[%emt 0:00:10]} 0-1

[Event "50th La Roda Open 2024"]
[Site "La Roda"]
[Date "2024.03.28"]
[Round "3.13"]
[White "Buendia Pinar, Alvaro"]
[Black "Santos, Antonio P"]
[Result "1-0"]
[ECO "D15"]
[WhiteElo "2331"]
[BlackElo "2165"]
[Annotator "RC"]
[PlyCount "77"]
[EventDate "2024.03.27"]
[EventType "swiss"]
[EventCountry "ESP"]
[SourceTitle "playchess.com"]
[Source "ChessBase"]
[SourceQuality "1"]
[TimeControl "5400+30"]

1. d4 {[%emt 0:00:33]} d5 {[%emt 0:00:11]} 2. c4 {[%emt 0:00:34]} c6 {[%emt 0:00:09]} 3. Nc3 {[%emt 0:00:32]} Nf6 {[%emt 0:00:10]} 4. Nf3 {[%emt 0:00:53]} a6 {[%emt 0:00:13]} 5. e3 {[%emt 0:00:47]} b5 {[%emt 0:00:09]} 6. b3 {[%emt 0:00:49]} Bg4 {[%emt 0:01:40]} 7. h3 {[%emt 0:03:26]} Bxf3 {[%emt 0:00:27]} 8. gxf3 {[%emt 0:05:09]} e6 {[%emt 0:00:10]} 9. Rg1 {[%emt 0:02:43]} g6 {[%emt 0:01:02]} 10. Bd3 {[%emt 0:02:49]} Bg7 {[%emt 0:01:10]} 11. Bb2 {[%emt 0:05:41]} O-O {[%emt 0:01:06]} 12. f4 {[%emt 0:00:36]} bxc4 {[%emt 0:08:21]} 13. bxc4 {[%emt 0:00:15]} Nbd7 {[%emt 0:01:26]} 14. cxd5 {[%emt 0:02:57]} Nxd5 {[%emt 0:22:47]} 15. Nxd5 {[%emt 0:05:47]} exd5 {[%emt 0:14:00]} 16. Kf1 {[%emt 0:05:18]} c5 {[%emt 0:01:00]} 17. Be2 {[%emt 0:00:03]} c4 {[%emt 0:20:17]} 18. Bf3 {[%emt 0:02:50]} Nf6 {[%emt 0:00:17]} 19. Bc3 {[%emt 0:01:21]} Re8 {[%emt 0:00:22]} 20. Rb1 {[%emt 0:03:04]} Qd7 {[%emt 0:01:03]} 21. Kg2 {[%emt 0:01:33]} h5 {[%emt 0:02:23]} 22. Kh2 {[%emt 0:01:12]} Rab8 {[%emt 0:03:38]} 23. Qc2 {[%emt 0:01:53]} Rb5 {[%emt 0:01:15]} 24. Rg2 {[%emt 0:02:28]} Kh7 {[%emt 0:06:18]} 25. Rbg1 {[%emt 0:02:34]} Bh6 {[%emt 0:00:01]} 26. Rxg6 {[%emt 0:01:56]} Ne4 {[%emt 0:00:51]} 27. Bxe4 {[%emt 0:00:47]} dxe4 {[%emt 0:02:10]} 28. R6g3 {[%emt 0:03:02]} Qd5 {[%emt 0:02:08]} 29. Qe2 {[%emt 0:01:37]} Qe6 {[%emt 0:02:39]} 30. Qf1 {[%emt 0:01:50]} f6 {[%emt 0:01:22]} 31. Rg6 {[%emt 0:10:51]} Rbb8 {[%emt 0:01:55]} 32. d5 {[%emt 0:07:08]} Qxd5 {[%emt 0:00:06]} 33. Rxf6 {[%emt 0:00:20]} Rg8 {[%emt 0:00:30]} 34. Qd1 {[%emt 0:01:29]} Qxd1 {[%emt 0:02:56]} 35. Rxd1 {[%emt 0:00:26]} Rbd8 {[%emt 0:02:38]} 36. Rxd8 {[%emt 0:00:56]} Rxd8 {[%emt 0:00:02]} 37. Rc6 {[%emt 0:00:10]} Bg7 {[%emt 0:00:31]} 38. Rc7 {[%emt 0:00:05]} Rg8 {[%emt 0:00:10]} 39. Kg1 {[%emt 0:01:35]} 1-0

[Event "50th La Roda Open 2024"]
[Site "La Roda"]
[Date "2024.03.28"]
[Round "3.14"]
[White "Rodriguez Avila, Alvaro"]
[Black "Liu, Zexu"]
[Result "0-1"]
[ECO "B12"]
[WhiteElo "2142"]
[BlackElo "2325"]
[Annotator "RC"]
[PlyCount "48"]
[EventDate "2024.03.27"]
[EventType "swiss"]
[EventCountry "ESP"]
[SourceTitle "playchess.com"]
[Source "ChessBase"]
[SourceQuality "1"]
[TimeControl "5400+30"]

1. e4 {[%emt 0:00:03]} c6 {[%emt 0:00:02]} 2. d4 {[%emt 0:00:11]} d5 {[%emt 0:00:04]} 3. e5 {[%emt 0:00:07]} c5 {[%emt 0:00:03]} 4. dxc5 {[%emt 0:00:42]} e6 {[%emt 0:00:04]} 5. Be3 {[%emt 0:03:12]} Nd7 {[%emt 0:00:17]} 6. Bb5 {[%emt 0:00:31]} Ne7 {[%emt 0:00:05]} 7. Nf3 {[%emt 0:02:39]} Nf5 {[%emt 0:00:32]} 8. Bd4 {[%emt 0:01:02]} Qa5+ {[%emt 0:00:13]} 9. Nc3 {[%emt 0:00:09]} a6 {[%emt 0:00:05]} 10. Bxd7+ {[%emt 0:03:47]} Bxd7 {[%emt 0:00:04]} 11. O-O {[%emt 0:03:36]} Nxd4 {[%emt 0:00:04]} 12. Qxd4 {[%emt 0:00:21]} Bxc5 {[%emt 0:00:33]} 13. Qf4 {[%emt 0:03:21]} Qb4 {[%emt 0:01:13]} 14. Qd2 {[%emt 0:06:02]} Rc8 {[%emt 0:11:14]} 15. a3 {[%emt 0:00:54]} Qb6 {[%emt 0:10:07]} 16. Rfd1 {[%emt 0:02:37]} O-O {[%emt 0:01:26]} 17. Rab1 {[%emt 0:09:26]} f6 {[%emt 0:00:48]} 18. Rf1 {[%emt 0:10:37]} Qc7 {[%emt 0:11:46]} 19. Rbe1 {[%emt 0:01:36]} Bxa3 {[%emt 0:07:30]} 20. exf6 {[%emt 0:23:43]} Rxf6 {[%emt 0:07:59]} 21. Ne5 {[%emt 0:00:16]} Bxb2 {[%emt 0:04:51]} 22. Nxd7 {[%emt 0:01:13]} Rh6 {[%emt 0:02:45]} 23. Qxh6 {[%emt 0:07:17]} gxh6 {[%emt 0:00:06]} 24. Nd1 {[%emt 0:01:14]} Bg7 {[%emt 0:00:21]} 0-1

[Event "50th La Roda Open 2024"]
[Site "La Roda"]
[Date "2024.03.28"]
[Round "3.15"]
[White "Gomez Falagan, Daniel"]
[Black "Ponce Navalon, Jose"]
[Result "0-1"]
[ECO "A58"]
[WhiteElo "2319"]
[BlackElo "2141"]
[Annotator "RC"]
[PlyCount "86"]
[EventDate "2024.03.27"]
[EventType "swiss"]
[EventCountry "ESP"]
[SourceTitle "playchess.com"]
[Source "ChessBase"]
[SourceQuality "1"]
[TimeControl "5400+30"]

1. d4 {[%emt 0:00:02]} Nf6 {[%emt 0:00:07]} 2. c4 {[%emt 0:00:05]} c5 {[%emt 0:00:08]} 3. d5 {[%emt 0:00:04]} b5 {[%emt 0:00:04]} 4. cxb5 {[%emt 0:00:05]} a6 {[%emt 0:00:07]} 5. bxa6 {[%emt 0:00:04]} g6 {[%emt 0:00:14]} 6. Nc3 {[%emt 0:00:28]} d6 {[%emt 0:00:34]} 7. a7 {[%emt 0:01:24]} Rxa7 {[%emt 0:00:35]} 8. e4 {[%emt 0:00:07]} Bg7 {[%emt 0:01:32]} 9. Nf3 {[%emt 1:32:41]} O-O {[%emt 0:00:47]} 10. Be2 {[%emt 0:00:00]} Ba6 {[%emt 0:03:32]} 11. O-O {[%emt 0:00:00]} Rb7 {[%emt 0:03:33]} 12. Bxa6 {[%emt 0:00:00]} Nxa6 {[%emt 0:00:07]} 13. Qe2 {[%emt 0:00:00]} Nc7 {[%emt 0:03:56]} 14. a4 {[%emt 0:00:00]} Qa8 {[%emt 0:01:03]} 15. Ra3 {[%emt 0:00:00]} Rb4 {[%emt 0:00:16]} 16. Qc2 {[%emt 0:00:00]} Rfb8 {[%emt 0:10:51]} 17. b3 {[%emt 0:00:00]} Qb7 {[%emt 0:06:17]} 18. Nd2 {[%emt 0:00:00]} Nd7 {[%emt 0:10:47]} 19. Ra2 {[%emt 0:00:00]} Ne5 {[%emt 0:06:05]} 20. Ba3 {[%emt 0:00:00]} Rd4 {[%emt 0:05:16]} 21. Ne2 {[%emt 0:00:00]} Rd3 {[%emt 0:00:21]} 22. f4 {[%emt 0:00:00]} Re3 {[%emt 0:00:18]} 23. fxe5 {[%emt 0:00:00]} Rxe2 {[%emt 0:00:10]} 24. Qd3 {[%emt 0:00:00]} Qa6 {[%emt 0:00:08]} 25. Qf3 {[%emt 0:00:00]} Rf8 {[%emt 0:01:48]} 26. exd6 {[%emt 0:00:00]} exd6 {[%emt 0:00:18]} 27. Rc2 {[%emt 0:00:00]} f5 {[%emt 0:03:39]} 28. e5 {[%emt 0:00:00]} Bxe5 {[%emt 0:00:51]} 29. Bb2 {[%emt 0:00:00]} Re8 {[%emt 0:08:41]} 30. g4 {[%emt 0:00:00]} Bxb2 {[%emt 0:00:07]} 31. Rxb2 {[%emt 0:00:00]} R8e3 {[%emt 0:00:06]} 32. Qf4 {[%emt 0:00:00]} Nxd5 {[%emt 0:01:53]} 33. Qg5 {[%emt 0:00:00]} Qd3 {[%emt 0:00:38]} 34. gxf5 {[%emt 0:00:00]} Qd4 {[%emt 0:00:21]} 35. Kh1 {[%emt 0:00:00]} Qe5 {[%emt 0:10:24]} 36. Qh6 {[%emt 0:00:00]} Nf6 {[%emt 0:05:18]} 37. Qf4 {[%emt 0:02:27]} Qd5+ {[%emt 0:06:47]} 38. Nf3 {[%emt 0:00:13]} Rxf3 {[%emt 0:01:19]} 39. Rxf3 {[%emt 0:00:05]} Rxb2 {[%emt 0:00:18]} 40. fxg6 {[%emt 0:00:17]} Rxb3 {[%emt 0:04:58]} 41. gxh7+ {[%emt 0:00:06]} Kxh7 {[%emt 0:00:52]} 42. Qh4+ {[%emt 0:02:47]} Kg8 {[%emt 0:00:12]} 43. Qg5+ {[%emt 0:00:43]} Qxg5 {[%emt 0:06:42]} 0-1

[Event "50th La Roda Open 2024"]
[Site "La Roda"]
[Date "2024.03.28"]
[Round "3.16"]
[White "Jarzebowski, Kacper"]
[Black "Ramiro Ovejero, Juan Luis"]
[Result "1/2-1/2"]
[ECO "D35"]
[WhiteElo "2139"]
[BlackElo "2316"]
[Annotator "RC"]
[PlyCount "93"]
[EventDate "2024.03.27"]
[EventType "swiss"]
[EventCountry "ESP"]
[SourceTitle "playchess.com"]
[Source "ChessBase"]
[SourceQuality "1"]
[TimeControl "5400+30"]

1. Nf3 {[%emt 0:00:05]} d5 {[%emt 0:00:21]} 2. d4 {[%emt 0:00:05]} e6 {[%emt 0:00:55]} 3. c4 {[%emt 0:00:21]} h6 {[%emt 0:00:15]} 4. Nc3 {[%emt 0:00:29]} Nf6 {[%emt 0:00:06]} 5. g3 {[%emt 0:00:46]} Bd6 {[%emt 0:00:26]} 6. Bg2 {[%emt 0:00:12]} O-O {[%emt 0:00:09]} 7. O-O {[%emt 0:00:19]} Nc6 {[%emt 0:00:15]} 8. cxd5 {[%emt 0:01:10]} exd5 {[%emt 0:00:11]} 9. Bf4 {[%emt 0:02:01]} Bxf4 {[%emt 0:07:35]} 10. gxf4 {[%emt 0:00:02]} Ne4 {[%emt 0:12:44]} 11. Rc1 {[%emt 0:11:05]} Bf5 {[%emt 0:07:43]} 12. Ne5 {[%emt 0:04:46]} Nxc3 {[%emt 0:06:20]} 13. Rxc3 {[%emt 0:02:03]} Ne7 {[%emt 0:00:14]} 14. Qb3 {[%emt 0:08:13]} Rb8 {[%emt 0:00:52]} 15. Kh1 {[%emt 0:02:15]} c6 {[%emt 0:01:42]} 16. Rg1 {[%emt 0:00:09]} f6 {[%emt 0:00:49]} 17. Nd3 {[%emt 0:07:43]} Kh8 {[%emt 0:00:41]} 18. Nc5 {[%emt 0:04:36]} Qd6 {[%emt 0:05:20]} 19. e3 {[%emt 0:36:08]} Ng6 {[%emt 0:12:59]} 20. Qd1 {[%emt 0:00:19]} b6 {[%emt 0:03:10]} 21. Qh5 {[%emt 0:02:38]} bxc5 {[%emt 0:03:15]} 22. Qxf5 {[%emt 0:00:26]} Ne7 {[%emt 0:00:10]} 23. dxc5 {[%emt 0:01:52]} Nxf5 {[%emt 0:06:33]} 24. cxd6 {[%emt 0:00:09]} Rxb2 {[%emt 0:02:43]} 25. Rxc6 {[%emt 0:00:25]} Rd8 {[%emt 0:00:13]} 26. d7 {[%emt 0:01:00]} Ne7 {[%emt 0:00:09]} 27. Rc7 {[%emt 0:02:09]} a5 {[%emt 0:04:47]} 28. Rd1 {[%emt 0:02:42]} Rxa2 {[%emt 0:03:50]} 29. Bxd5 {[%emt 0:00:27]} Rxf2 {[%emt 0:00:31]} 30. Be6 {[%emt 0:03:08]} Kh7 {[%emt 0:00:21]} 31. Rd3 {[%emt 0:02:29]} g5 {[%emt 0:07:05]} 32. f5 {[%emt 0:02:07]} h5 {[%emt 0:00:25]} 33. Rc8 {[%emt 0:00:28]} Nxc8 {[%emt 0:00:28]} 34. dxc8=Q {[%emt 0:00:04]} Rxc8 {[%emt 0:00:25]} 35. Bxc8 {[%emt 0:00:01]} g4 {[%emt 0:00:32]} 36. Ra3 {[%emt 0:02:42]} Kh6 {[%emt 0:01:20]} 37. Rxa5 {[%emt 0:00:44]} Kg5 {[%emt 0:00:06]} 38. Ba6 {[%emt 0:01:05]} Kh4 {[%emt 0:00:33]} 39. Kg1 {[%emt 0:00:16]} Rf3 {[%emt 0:00:41]} 40. Be2 {[%emt 0:01:40]} Rxe3 {[%emt 0:00:13]} 41. Kf2 {[%emt 0:00:36]} Rh3 {[%emt 0:00:20]} 42. Kg2 {[%emt 0:00:05]} Re3 {[%emt 0:00:09]} 43. Ra2 {[%emt 0:00:22]} Kg5 {[%emt 0:00:16]} 44. Kf2 {[%emt 0:00:20]} Rh3 {[%emt 0:00:12]} 45. Kg2 {[%emt 0:00:25]} Re3 {[%emt 0:00:05]} 46. Kf2 {[%emt 0:01:36]} Rh3 {[%emt 0:00:23]} 47. Kg2 {[%emt 0:00:17]} 1/2-1/2

[Event "50th La Roda Open 2024"]
[Site "La Roda"]
[Date "2024.03.29"]
[Round "4.1"]
[White "Aravindh, Chithambaram VR."]
[Black "Martinez Ramirez, Lennis"]
[Result "1-0"]
[ECO "D35"]
[WhiteElo "2662"]
[BlackElo "2450"]
[Annotator "TA"]
[PlyCount "91"]
[EventDate "2024.03.27"]
[EventType "swiss"]
[EventCountry "ESP"]
[SourceTitle "playchess.com"]
[Source "ChessBase"]
[SourceQuality "1"]
[TimeControl "5400+30"]

{[%evp 20,91,25,11,12,0,0,-19,61,65,79,55,81,15,2,18,9,13,12,0,0,0,-18,0,0,-28,-19,-40,-37,-87,0,0,0,0,0,-20,17,28,58,56,63,57,1333,1399,1247,741,1354,1283,1713,1430,1604,1571,2310,1895,5306,4529,5397,4818,29974,29972,29975,29976,29978,29978,29979,29981,29981,29982,29982,29982,29985,29986,29986,29987]} 1. d4 {[%emt 0:00:30]} Nf6 {[%emt 0:01:04]} 2. c4 {[%emt 0:00:00]} e6 {[%emt 0:00:30]} 3. Nc3 {[%emt 0:00:00]} d5 {[%emt 0:01:35]} 4. cxd5 {[%emt 0:00:25]} exd5 {[%emt 0:00:10]} 5. Bg5 {[%emt 0:00:15]} c6 {[%emt 0:00:32]} 6. e3 {[%emt 0:01:10]} h6 {[%emt 0:00:44]} 7. Bh4 {[%emt 0:00:23]} Bf5 {[%emt 0:08:21]} 8. Qb3 {[%emt 0:01:36] D35: Damengambit (Abtauschvariante).} Qb6 {[%emt 0:04:22]} 9. Bxf6 {[%emt 0:01:05]} gxf6 {[%emt 0:00:42]} 10. Kd2 {[%emt 0:11:35]} h5 $146 {[%emt 0:12:49]} ({Predecessor:} 10... Nd7 11. Bd3 Bxd3 12. Qxb6 Nxb6 13. Kxd3 Rg8 14. g3 f5 15. Nf3 Nc4 16. b3 Nd6 {0-1 Sarana,A (2670)-Andreikin,D (2729) Chess.com Rapid Wk17 Swiss 2022 (6)}) 11. Nf3 {[%emt 0:13:14]} (11. Qxb6 {vereinfacht} axb6 12. Bd3 Bg4 13. h4) 11... h4 {[%emt 0:00:24]} 12. Bd3 {[%emt 0:00:38]} (12. Qxb6 {vereinfacht} axb6 13. Be2 b5 14. Bd3) 12... Bg4 {[%emt 0:00:58]} 13. h3 {[%emt 0:05:17]} Be6 {[%emt 0:00:09]} (13... Qxb3 $1 $11 14. axb3 Bxf3 15. gxf3 Bb4) 14. Qc2 $14 {[%emt 0:08:50]} Nd7 {[%emt 0:00:56]} 15. a3 {[%emt 0:09:47]} Bd6 {[%emt 0:02:10]} 16. b4 {[%emt 0:07:32]} (16. Ke2 $16) 16... Ke7 {[%emt 0:00:27]} 17. Ke2 {[%emt 0:01:24]} Rag8 {[%emt 0:00:05]} 18. Kf1 {[%emt 0:00:12]} Rh5 {[%emt 0:00:05]} 19. Na4 {[%emt 0:10:38]} Qc7 {[%emt 0:00:06]} 20. Nc5 {[%emt 0:00:04]} f5 {[%emt 0:00:13]} 21. Rc1 {[%emt 0:00:30]} Nf6 {[%emt 0:02:54]} 22. Qd1 {[%emt 0:08:29]} Ne4 {[%emt 0:03:23]} 23. Rg1 {[%emt 0:03:20]} Rh6 {[%emt 0:00:59]} 24. b5 {[%emt 0:00:14]} ({Günstiger ist} 24. Rc2 $15) 24... Bh2 {[%emt 0:01:36]} (24... Bxc5 $17 25. dxc5 f4) 25. Nxe6 {[%emt 0:11:37]} fxe6 {[%emt 0:03:48]} 26. Nxh2 {[%emt 0:00:15]} Qxh2 {[%emt 0:00:21]} 27. bxc6 {[%emt 0:01:35]} Rhg6 {[%emt 0:00:31]} (27... Ng5 $5 28. Ke2 (28. cxb7 Nxh3 29. Qe1 Qxg1+ $19) 28... bxc6 $11) 28. Bxe4 {[%emt 0:00:35]} (28. cxb7 Qxg1+ (28... Rxg2 29. Rc7+ Kd6 30. Rc6+ Kxc6 31. Qc2+ Kxb7 32. Rxg2 Rxg2 33. Ba6+ Kb6 34. Ke1 Rxf2 35. Qb3+ Kc7 36. Qb7+ Kd8 37. Qa8+ Ke7 38. Qxa7+ Kf6 39. Qg7+ Kxg7 40. Bf1 Rxf1+ 41. Kxf1 Qf2#) 29. Kxg1 Rxg2+ 30. Kf1 Rxf2+ (30... Nxf2 31. Rc7+ Kf6 32. Qh5 R2g7 33. Qxh4+ Rg5 34. b8=Q Rxb8 35. Qh7) 31. Ke1 Rg1+) 28... fxe4 {[%emt 0:00:07]} 29. Qh5 $1 {[%emt 0:00:46]} (29. cxb7 Rxg2 30. Rxg2 Rxg2 $11) 29... Rxg2 {[%emt 0:00:40]} 30. Rxg2 {[%emt 0:02:04]} ({Ein No Go ist} 30. Qxh4+ Kd6 31. Rxg2 Qh1+ (31... Qxg2+ 32. Ke1 $16) 32. Ke2 Qxc1 33. Rxg8 (33. Qf4+ Kxc6 34. Rxg8 Qc4+ 35. Ke1 Qc1+ 36. Ke2 Qc4+ 37. Ke1 Qc1+ 38. Ke2 $11) 33... Qc4+ 34. Ke1 Qc1+ 35. Ke2 Qc4+ 36. Ke1 Qc1+ 37. Ke2 $11) 30... Rxg2 $4 {[%emt 0:03:44][%mdl 8192]} (30... Qxg2+ $14 31. Ke2 bxc6) 31. Qxh4+ $18 {[%emt 0:00:19]} Kf7 {[%emt 0:09:44] [#]} 32. Qf4+ $1 {[%emt 0:00:06]} ({Minderwertig wäre} 32. cxb7 Qh1+ (32... Rg1+ $2 33. Ke2 $18) 33. Ke2 Qxc1 $11) 32... Qxf4 {[%emt 0:00:16]} 33. exf4 {[%emt 0:00:04]} Rg8 {[%emt 0:00:07]} 34. cxb7 {[%emt 0:00:04]} Rb8 {[%emt 0:00:10]} 35. Rb1 {[%emt 0:00:06]} Kf6 {[%emt 0:00:38]} 36. Ke2 {[%emt 0:00:06]} Kf5 {[%emt 0:00:24]} 37. Ke3 {[%emt 0:00:07]} Kg6 {[%emt 0:02:04]} 38. a4 {[%emt 0:00:10]} a5 {[%emt 0:00:11]} 39. Rb6 {[%emt 0:00:30]} Kf6 {[%emt 0:00:45]} 40. h4 {[%emt 0:00:15]} Kf5 {[%emt 0:00:20]} 41. f3 {[%emt 0:00:13]} exf3 {[%emt 0:00:20]} 42. Kxf3 {[%emt 0:00:06]} Kf6 {[%emt 0:00:29]} 43. h5 {[%emt 0:00:35]} Kf5 {[%emt 0:00:07]} 44. h6 {[%emt 0:00:38]} Kg6 {[%emt 0:01:09]} 45. Rxe6+ {[%emt 0:00:44]} Kh7 {[%emt 0:00:10]} 46. Rb6 {[%emt 0:00:11]} 1-0